fUST/lending_fUST_20250408
["ID","MTS","AMOUNT","RATE_DAILY","PERIOD"]
[357510874,1744096256080,-1009.8331372,0.00035371,5]
[357510875,1744096256090,-1500.0,0.00035371,5]
[357510876,1744096256099,-150.12984243,0.0003553,5]
[357510877,1744096256108,-150.07313899,0.0003553,5]
[357510878,1744096256118,-1594.51586416,0.00035557,5]
[357510879,1744096256128,-150.0,0.00035591,2]
[357510880,1744096256137,-1000.33772039,0.00035616,5]
[357510881,1744096256147,-160.0,0.00035699,10]
[357510882,1744096256157,-151.0,0.000357,14]
[357510883,1744096256166,-151.0,0.000357,14]
[357510884,1744096256175,-151.0,0.000357,14]
[357510885,1744096256185,-151.0,0.000357,2]
[357510886,1744096256194,-151.0,0.000357,2]
[357510887,1744096256204,-173.01005,0.000357,14]
[357510888,1744096256213,-151.0,0.000357,14]
[357510889,1744096256223,-184.586752,0.000357,14]
[357510890,1744096256233,-184.586752,0.000357,14]
[357510891,1744096256244,-308.597697,0.000357,14]
[357510892,1744096256255,-308.597697,0.000357,14]
[357510893,1744096256265,-151.0,0.000357,14]
[357510894,1744096256276,-151.0,0.000357,14]
[357510895,1744096256287,-198.716186,0.000357,14]
[357510896,1744096256299,-198.716186,0.000357,14]
[357510897,1744096256308,-151.0,0.000357,14]
[357510898,1744096256319,-274.691803,0.000357,14]
[357510899,1744096256329,-3743.844614,0.000357,2]
[357510900,1744096256339,-3743.844614,0.000357,2]
[357510901,1744096256349,-151.0,0.000357,14]
[357510902,1744096256359,-151.0,0.000357,14]
[357510903,1744096256369,-151.0,0.000357,14]
[357510904,1744096256379,-51554.42,0.000357,30]
[357510905,1744096256388,-960.33,0.000357,7]
[357510906,1744096256401,-1412.1447877,0.00035876,4]
[357510907,1744096256410,-2000.0,0.00035929,4]
[357510908,1744096256420,-163.31155111,0.00035999,10]
[357510909,1744096256429,-1144236.89096547,0.00036,2]
[357510910,1744096256488,-705.93763268,0.00036,2]
[357510911,1744096256580,-500.0,0.00023589,2]
[357510912,1744096256591,-138414.23127607,0.00036,2]
[357510913,1744096257254,-49580.13639556,0.00036,2]
[357510914,1744096257266,-213518.28589307,0.00036,2]
[357510915,1744096257277,-500.0,0.00036,13]
[357510916,1744096257286,-151.0,0.00036,14]
[357510917,1744096257296,-151.0,0.00036,14]
[357510918,1744096257305,-198.716186,0.00036,14]
[357510919,1744096257315,-198.716186,0.00036,14]
[357510920,1744096257324,-151.0,0.00036,14]
[357510921,1744096257334,-3743.844614,0.00036,2]
[357510922,1744096257343,-3743.844614,0.00036,2]
[357510923,1744096257354,-151.0,0.00036,14]
[357510924,1744096257363,-837.41003169,0.00036,3]
[357510925,1744096257373,-837.41003169,0.00036,7]
[357510926,1744096257383,-160.0,0.00036,3]
[357510927,1744096257392,-160.0,0.00036,7]
[357510928,1744096257402,-151.0,0.00036,14]
[357510929,1744096257411,-160.0,0.00036,3]
[357510930,1744096257421,-160.0,0.00036,3]
[357510931,1744096257430,-160.0,0.00036,7]
[357510932,1744096257439,-158.860118,0.00036,14]
[357510933,1744096257541,-151.0,0.00036,14]
[357510934,1744096257551,-12530.86563381,0.00036,7]
[357510935,1744096257563,-600.32802993,0.00036475,5]
[357510936,1744096257573,-206.75556672,0.00036475,5]
[357510937,1744096257582,-307.200376,0.00036475,5]
[357510938,1744096257591,-1500.0,0.00036475,5]
[357510939,1744096257606,-600.0,0.0003648,2]
[357510940,1744096257615,-600.0,0.0003686,2]
[357510941,1744096257630,-201983.68810982,0.00037,7]
[357510942,1744096257639,-837.41003169,0.00037,7]
[357510943,1744096257650,-12530.86563381,0.00037,3]
[357510944,1744096257659,-501.8281432,0.00037076,5]
[357510945,1744096257669,-1062.97977773,0.00037226,5]
[357510946,1744096257679,-611.1830386,0.0003724,2]
[357510947,1744096257688,-160.0,0.00037493,5]
[357510948,1744096257698,-160.0,0.00037493,5]
[357510949,1744096257709,-1500.0,0.00037567,5]
[357510950,1744096257718,-2000.0,0.00037965,4]
[357510951,1744096257729,-151.0,0.00038,14]
[357510952,1744096257738,-358.0,0.00038,14]
[357510953,1744096257748,-358.0,0.00038,14]
[357510954,1744096257758,-157.53178259,0.00038,14]
[357510955,1744096257767,-1003.266388,0.00038,26]
[357510956,1744096257777,-184.586752,0.000382,14]
[357510957,1744096257786,-184.586752,0.000382,14]
[357510958,1744096257796,-308.597697,0.000382,14]
[357510959,1744096257805,-308.597697,0.000382,14]
[357510960,1744096257815,-151.0,0.000382,14]
[357510961,1744096257824,-188.872161,0.000382,14]
[357510962,1744096257833,-198.716186,0.000382,14]
[357510963,1744096257843,-198.716186,0.000382,14]
[357510964,1744096257852,-151.0,0.000382,14]
[357510965,1744096257861,-3743.844614,0.000382,2]
[357510966,1744096257871,-3743.844614,0.000382,2]
[357510967,1744096257880,-151.0,0.000382,14]
[357510968,1744096257889,-151.0,0.000382,14]
[357510969,1744096257899,-151.0,0.000382,14]
[357510970,1744096257910,-250.0,0.00038356,5]
[357510971,1744096257919,-1500.0,0.00038356,5]
[357510972,1744096257929,-151.0,0.000384,14]
[357510973,1744096257939,-824.27,0.000384,30]
[357510974,1744096257949,-150.0,0.00038591,2]
[357510975,1744096257958,-960.33,0.000386,7]
[357510976,1744096257968,-411.71,0.00039,7]
[357510977,1744096257978,-500.0,0.00039703,2]
[357510978,1744096257987,-500.87168594,0.0004,14]
[357510979,1744096257997,-151.0,0.0004,14]
[357510980,1744096258006,-165.514806,0.0004,14]
[357510981,1744096258016,-151.0,0.0004,2]
[357510982,1744096258025,-151.0,0.0004,2]
[357510983,1744096258034,-51554.42,0.0004,30]
[357510984,1744096258044,-34200.21093794,0.00040194,2]
[357510985,1744096258054,-151.0,0.000406,14]
[357510986,1744096258064,-6955.58345378,0.00040821,10]
[357510987,1744096258073,-151.0,0.00041,14]
[357510988,1744096258083,-151.0,0.00041,14]
[357510989,1744096258091,-151.0,0.00041,14]
[357510990,1744096258101,-184.586752,0.00041,14]
[357510991,1744096258110,-184.586752,0.00041,14]
[357510992,1744096258120,-308.597697,0.00041,14]
[357510993,1744096258129,-308.597697,0.00041,14]
[357510994,1744096258139,-151.0,0.00041,14]
[357510995,1744096258149,-198.716186,0.00041,14]
[357510996,1744096258158,-198.716186,0.00041,14]
[357510997,1744096258168,-151.0,0.00041,14]
[357510998,1744096258178,-3743.844614,0.00041,2]
[357510999,1744096258187,-3743.844614,0.00041,2]
[357511000,1744096258197,-151.0,0.00041,14]
[357511001,1744096258206,-837.41003169,0.00041,3]
[357511002,1744096258216,-151.0,0.00041,14]
[357511003,1744096258226,-151.0,0.00041,14]
[357511004,1744096258236,-208.0,0.0004107,120]
[357511005,1744096258246,-2764.61857121,0.00041073,10]
[357511006,1744096258255,-208.0,0.0004108,120]
[357511007,1744096258265,-208.0,0.0004109,120]
[357511008,1744096258274,-151.0,0.00041095,14]
[357511009,1744096258283,-151.0,0.00041095,14]
[357511010,1744096258293,-151.0,0.00041095,2]
[357511011,1744096258302,-151.0,0.00041095,2]
[357511012,1744096258311,-500.0,0.00041095,2]
[357511013,1744096258321,-500.0,0.00041095,2]
[357511014,1744096258330,-500.0,0.00041095,2]
[357511015,1744096258339,-281.21922966,0.00041095,2]
[357511016,1744096258349,-150.02079573,0.00041096,10]
[357511017,1744096258358,-25674.73005812,0.00041096,10]
[357511018,1744096258368,-150.0,0.00041591,2]
[357511019,1744096258378,-592.02,0.000416,20]
[357511020,1744096258388,-239.55493757,0.000416,17]
[357511021,1744096258398,-151458.31632473,0.00041643,7]
[357511022,1744096258407,-4130.84464953,0.00041643,7]
[357511023,1744096258416,-4130.84464953,0.00041643,7]
[357511024,1744096258426,-451.40467223,0.00041643,7]
[357511025,1744096258436,-203.46916425,0.00041643,7]
[357511026,1744096258445,-203.46916425,0.00041643,7]
[357511027,1744096258455,-598.53333575,0.00041643,7]
[357511028,1744096258464,-598.53333575,0.00041643,7]
[357511029,1744096258474,-37840.23815998,0.00041643,7]
[357511030,1744096258483,-37840.23815998,0.00041643,7]
[357511031,1744096258493,-266.42274872,0.00041643,7]
[357511032,1744096258502,-35557.67658852,0.00041643,7]
[357511033,1744096258511,-35557.67658852,0.00041643,7]
[357511034,1744096258521,-271.63956653,0.00041643,7]
[357511035,1744096258532,-271.63956653,0.00041643,7]
[357511036,1744096258541,-3743.844614,0.00041643,2]
[357511037,1744096258550,-3743.844614,0.00041643,2]
[357511038,1744096258559,-151.0,0.00041643,120]
[357511039,1744096258570,-824.27,0.000417,30]
[357511040,1744096258579,-265681.19439299,0.000418,14]
[357511041,1744096258801,-210.16432395,0.00019479,2]
[357511042,1744096258923,-0.00937227,0.00019479,2]
[357511043,1744096260394,-195.95421223,0.00018518,2]
[357511044,1744096260405,-289.82630378,0.00019479,2]
[357511045,1744096260414,-564.53663532,0.00019479,2]
[357511046,1744096260424,-500.0,0.00019479,2]
[357511047,1744096260433,-500.0,0.00019753,2]
[357511048,1744096260443,-500.0,0.00019753,2]
[357511049,1744096260452,-500.0,0.00020027,2]
[357511050,1744096260461,-608.16,0.00020301,2]
[357511051,1744096260471,-617.19364586,0.00023863,2]
[357511052,1744096260480,-419.46366559,0.00036,7]
[357511053,1744096260489,-419.46366559,0.00036,30]
[357511054,1744096260498,-419.46366559,0.00037,3]
[357511055,1744096260507,-15336.72475078,0.000418,14]
[357511056,1744096260577,-555.01324866,0.000418,14]
[357511057,1744096260942,-2354.736403,0.000418,14]
[357511058,1744096260955,-5448.72299132,0.000418,14]
[357511059,1744096260967,-5405.55872368,0.000418,14]
[357511060,1744096260976,-151.0,0.000418,2]
[357511061,1744096260985,-151.0,0.000418,120]
[357511062,1744096260995,-151.0,0.000418,120]
[357511063,1744096261004,-151.0,0.000418,120]
[357511064,1744096261013,-151.0,0.000418,120]
[357511065,1744096261023,-151.0,0.000418,120]
[357511066,1744096261033,-185.544548,0.000418,120]
[357511067,1744096261042,-151.0,0.000418,120]
[357511068,1744096261051,-837.41003169,0.00042,10]
[357511069,1744096261060,-160.0,0.00042,10]
[357511070,1744096261069,-303.88937964,0.00042,10]
[357511071,1744096437176,-500.0,0.00019379,2]
[357511072,1744096439772,-876.56450465,0.00019379,2]
[357511073,1744096739515,-500.0,0.00019473,2]
[357511074,1744096742573,-500.0,0.00019477,2]
[357511075,1744096743689,-300.0,0.00019476,2]
[357511076,1744096743716,-76.56450465,0.00019477,2]
[357511077,1744096790783,-175.9051293,0.00018341,2]
[357511078,1744096797576,-60.132436,0.00018341,2]
[357511079,1744096797599,-175.9051293,0.00018526,2]
[357511080,1744096802642,-500.0,0.00019477,2]
[357511081,1744096804278,-202.0,0.00019476,2]
[357511082,1744096804303,-1692.379306,0.00019477,2]
[357511083,1744096843248,-153.88650192,0.00019377,2]
[357511087,1744097145208,-1798.60622016,0.00019378,2]
[357511088,1744097145231,-153.88650192,0.00019467,2]
[357511089,1744097145252,-383.58136447,0.00019473,2]
[357511090,1744097145273,-304.80829648,0.00019473,2]
[357511092,1744097236093,-500.0,0.00019473,2]
[357511093,1744097236120,-300.0,0.00019476,2]
[357511094,1744097236144,-3646.69730821,0.00019477,2]
[357511096,1744097244134,-1967.11446685,0.00019379,2]
[357511097,1744097244158,-2158.40029748,0.00019477,2]
[357511098,1744097244182,-350.80202729,0.00019477,2]
[357511099,1744097244207,-500.0,0.00019477,2]
[357511100,1744097244231,-528.39,0.00019477,2]
[357511101,1744097244256,-500.0,0.00019477,2]
[357511102,1744097244281,-500.0,0.00019477,2]
[357511103,1744097244308,-500.0,0.00019477,2]
[357511104,1744097244333,-508.84346544,0.00019477,2]
[357511105,1744097244359,-596.39938883,0.00019477,2]
[357511106,1744097244384,-506.80774565,0.00019477,2]
[357511107,1744097244409,-500.0,0.00019477,2]
[357511108,1744097244434,-599.72567381,0.00019477,2]
[357511109,1744097244459,-501.9742945,0.00019477,2]
[357511110,1744097244482,-502.49742003,0.00019477,2]
[357511111,1744097244505,-500.0,0.00019477,2]
[357511112,1744097244528,-500.0,0.00019477,2]
[357511113,1744097244551,-518.29193319,0.00019477,2]
[357511114,1744097244585,-502.80900431,0.00019477,2]
[357511115,1744097244619,-500.0,0.00019477,2]
[357511116,1744097244648,-501.84,0.00019477,2]
[357511117,1744097244676,-500.0,0.00019477,2]
[357511118,1744097244702,-500.0,0.00019477,2]
[357511119,1744097244726,-500.0,0.00019477,2]
[357511120,1744097244753,-500.0,0.00019477,2]
[357511121,1744097244781,-500.0,0.00019477,2]
[357511122,1744097244808,-508.81205845,0.00019477,2]
[357511123,1744097244841,-525.67421831,0.00019477,2]
[357511124,1744097244868,-500.0,0.00019477,2]
[357511125,1744097244894,-368.73318357,0.00019477,2]
[357511126,1744097244923,-500.0,0.00019477,2]
[357511127,1744097244947,-500.0,0.00019477,2]
[357511128,1744097244974,-577.6531334,0.00019477,2]
[357511129,1744097245001,-586.41517312,0.00019477,2]
[357511130,1744097245026,-348.61316512,0.00019477,2]
[357511131,1744097245051,-500.0,0.00019477,2]
[357511132,1744097245078,-346.69321002,0.00019477,2]
[357511133,1744097245104,-500.0,0.00019477,2]
[357511134,1744097245130,-200.0,0.00019477,2]
[357511135,1744097245155,-349.52268745,0.00019478,2]
[357511136,1744097245180,-500.0,0.00019478,2]
[357511137,1744097245207,-500.0,0.00019478,2]
[357511138,1744097245233,-163.114705,0.00019478,2]
[357511139,1744097245266,-500.0,0.00019478,2]
[357511140,1744097245295,-500.0,0.00019478,2]
[357511141,1744097245324,-168.96206978,0.00019478,2]
[357511142,1744097245350,-500.0,0.00019479,2]
[357511143,1744097245375,-500.0,0.00019479,2]
[357511144,1744097245401,-196.42600445,0.00019479,2]
[357511145,1744097245426,-509.71093494,0.00019479,2]
[357511146,1744097245452,-510.06012536,0.00019479,2]
[357511147,1744097245477,-505.32586855,0.00019479,2]
[357511148,1744097245502,-505.5772869,0.00019479,2]
[357511149,1744097245528,-502.72240067,0.00019479,2]
[357511150,1744097245553,-559.25035664,0.00019479,2]
[357511151,1744097245578,-501.64316353,0.00019479,2]
[357511152,1744097245602,-505.88102214,0.00019479,2]
[357511153,1744097245626,-213.64556305,0.00019479,2]
[357511154,1744097245846,-500.0,0.00019479,2]
[357511155,1744097245873,-551.06,0.00019479,2]
[357511156,1744097245905,-508.08548406,0.00019479,2]
[357511157,1744097245929,-513.45240241,0.00019479,2]
[357511158,1744097245952,-500.0,0.00019479,2]
[357511159,1744097245973,-645.25511935,0.00019479,2]
[357511160,1744097245996,-500.0,0.00019479,2]
[357511161,1744097246019,-500.0,0.00019479,2]
[357511162,1744097246040,-500.0,0.00019479,2]
[357511163,1744097246061,-500.0,0.00019479,2]
[357511164,1744097246082,-507.61398855,0.00019479,2]
[357511165,1744097246103,-505.82129604,0.00019479,2]
[357511166,1744097246124,-505.88180676,0.00019479,2]
[357511167,1744097246145,-506.804823,0.00019479,2]
[357511168,1744097246165,-500.0,0.00019479,2]
[357511169,1744097246186,-500.0,0.00019479,2]
[357511170,1744097246207,-500.0,0.00019479,2]
[357511171,1744097246228,-500.0,0.00019479,2]
[357511172,1744097246249,-500.0,0.00019479,2]
[357511173,1744097246269,-500.0,0.00019479,2]
[357511174,1744097246291,-500.0,0.00019479,2]
[357511175,1744097246314,-500.0,0.00019479,2]
[357511176,1744097246335,-500.0,0.00019479,2]
[357511177,1744097246357,-500.0,0.00019479,2]
[357511178,1744097246379,-629.78,0.00019479,2]
[357511179,1744097246400,-500.0,0.00019479,2]
[357511180,1744097246421,-500.0,0.00019751,2]
[357511181,1744097246442,-184.95848915,0.00019751,2]
[357511182,1744097246462,-500.0,0.00019751,2]
[357511183,1744097246483,-500.0,0.00019751,2]
[357511184,1744097246503,-607.64087509,0.00019751,2]
[357511185,1744097246525,-500.0,0.00019751,2]
[357511186,1744097246546,-500.0,0.00019751,2]
[357511187,1744097246568,-515.9139936,0.00019751,2]
[357511188,1744097246592,-515.10324607,0.00019751,2]
[357511189,1744097246612,-500.0,0.00019751,2]
[357511190,1744097246632,-500.0,0.00019751,2]
[357511191,1744097246651,-512.83967617,0.00019751,2]
[357511192,1744097246672,-500.0,0.00019751,2]
[357511193,1744097246693,-500.0,0.00019751,2]
[357511194,1744097246715,-500.0,0.00019751,2]
[357511195,1744097246738,-500.0,0.00019751,2]
[357511196,1744097246760,-200.0,0.00019751,2]
[357511197,1744097246783,-500.0,0.00019753,2]
[357511198,1744097246805,-500.0,0.00019753,2]
[357511199,1744097246830,-500.0,0.00019753,2]
[357511200,1744097246851,-505.47005148,0.00019753,2]
[357511201,1744097246872,-506.10245172,0.00019753,2]
[357511202,1744097246894,-500.0,0.00019753,2]
[357511203,1744097246914,-512.06006469,0.00019753,2]
[357511204,1744097246935,-500.0,0.00019753,2]
[357511205,1744097246954,-500.0,0.00019753,2]
[357511206,1744097246977,-324.52482539,0.00019753,2]
[357511207,1744097246997,-500.0,0.00019773,2]
[357511208,1744097247019,-577.40949258,0.00019773,2]
[357511209,1744097247040,-500.0,0.00020027,2]
[357511210,1744097247062,-500.0,0.00020027,2]
[357511211,1744097247083,-500.0,0.00020027,2]
[357511212,1744097247104,-500.0,0.00020301,2]
[357511213,1744097247125,-500.0,0.00020301,2]
[357511214,1744097247146,-500.0,0.00020301,2]
[357511215,1744097247167,-500.0,0.00020575,2]
[357511216,1744097247187,-500.0,0.00020575,2]
[357511217,1744097247209,-500.0,0.00020849,2]
[357511218,1744097247230,-500.0,0.00020849,2]
[357511219,1744097247251,-273.8,0.00021123,2]
[357511220,1744097247272,-500.0,0.00021123,2]
[357511221,1744097247293,-500.0,0.00021397,2]
[357511222,1744097247314,-500.0,0.00021671,2]
[357511223,1744097247335,-500.0,0.000217,2]
[357511224,1744097247356,-500.0,0.000217,2]
[357511225,1744097247378,-200.0,0.00021917,2]
[357511226,1744097247398,-4233.3026446,0.00021918,2]
[357511227,1744097247419,-500.0,0.00021945,2]
[357511228,1744097247441,-160.0,0.00022141,2]
[357511229,1744097247462,-419.46366559,0.00022141,2]
[357511230,1744097247483,-12530.86563381,0.00022141,2]
[357511231,1744097247503,-837.41003169,0.00022141,2]
[357511232,1744097247524,-160.0,0.00022141,2]
[357511233,1744097247546,-447.88,0.00022219,2]
[357511234,1744097247570,-4674.39393243,0.000223,4]
[357511235,1744097247591,-422.52295166,0.00022394,2]
[357511236,1744097247612,-500.0,0.00022394,2]
[357511237,1744097247632,-265.38882759,0.00023287,2]
[357511238,1744097247652,-500.0,0.00024076,2]
[357511239,1744097247672,-169.89024459,0.00024852,2]
[357511240,1744097247692,-500.0,0.00024873,2]
[357511241,1744097247710,-500.0,0.00024873,2]
[357511242,1744097247729,-500.0,0.00024873,2]
[357511243,1744097247751,-500.0,0.00024873,2]
[357511244,1744097247773,-500.0,0.00024873,2]
[357511245,1744097247795,-500.0,0.00024873,2]
[357511246,1744097247820,-500.0,0.00024873,2]
[357511247,1744097247841,-194.52230723,0.00024873,2]
[357511248,1744097247864,-500.0,0.00024873,2]
[357511249,1744097247886,-500.0,0.00024873,2]
[357511250,1744097247908,-170.87764805,0.00024899,2]
[357511251,1744097247929,-500.0,0.00024899,2]
[357511252,1744097247950,-364.66820625,0.00024899,2]
[357511253,1744097247973,-103450.80560404,0.000249,2]
[357511265,1744097356091,-304.96817993,0.0002178,2]
[357511266,1744097356117,-1559.98463561,0.00023,2]
[357511281,1744097432000,-3988.93533083,0.00023,2]
[357511282,1744097432030,-7783.13842421,0.00023,2]
[357511283,1744097432040,-151.0,0.00023,2]
[357511284,1744097432050,-160.0,0.00023,2]
[357511285,1744097432060,-160.0,0.00023,2]
[357511286,1744097432070,-419.46366559,0.00024895,2]
[357511287,1744097432080,-12530.86563381,0.00024895,2]
[357511288,1744097432090,-837.41003169,0.00024895,2]
[357511289,1744097432100,-4518.58080132,0.000249,5]
[357511290,1744097432109,-659.5185218,0.00024952,2]
[357511291,1744097432119,-2073.50562115,0.00025,2]
[357511292,1744097432128,-12000.0,0.00025,3]
[357511293,1744097432139,-226.48239348,0.000254,2]
[357511294,1744097432149,-500.0,0.000254,2]
[357511295,1744097432158,-500.0,0.000254,2]
[357511296,1744097432169,-500.0,0.000254,2]
[357511297,1744097432179,-900.0,0.00025469,3]
[357511298,1744097432189,-32442.21532673,0.00026,30]
[357511299,1744097432199,-167.593456,0.00027397,120]
[357511300,1744097432209,-500.0,0.00027397,5]
[357511301,1744097432219,-18943.80452047,0.000277,2]
[357511302,1744097432228,-1000.0,0.00027874,2]
[357511303,1744097432238,-150.0,0.000282,2]
[357511304,1744097432251,-153.70153521,0.0003,10]
[357511305,1744097432260,-535.8727748,0.0003,7]
[357511306,1744097432269,-1000.0,0.00030352,5]
[357511307,1744097432279,-1000.0,0.00030879,5]
[357511308,1744097432289,-1000.0,0.00030879,5]
[357511309,1744097432298,-1000.0,0.00030879,5]
[357511310,1744097432308,-1000.0,0.00032877,5]
[357511311,1744097432318,-647.15021826,0.00033,120]
[357511312,1744097432327,-2781.15533292,0.00033,5]
[357511313,1744097432337,-169.89024459,0.00033876,2]
[357511314,1744097432346,-179.89206476,0.00034001,12]
[357511315,1744097432355,-500.0,0.00034233,5]
[357511316,1744097432365,-928.79670958,0.00035,30]
[357511317,1744097432377,-37221.10132708,0.00035,30]
[357511318,1744097432386,-562.87,0.0003519,30]
[357511319,1744097432396,-605.26774438,0.00035259,7]
[357511320,1744097432405,-419.46366559,0.0003569,3]
[357511321,1744097432414,-837.41003169,0.0003569,3]
[357511322,1744097432423,-160.0,0.0003569,3]
[357511323,1744097432433,-12530.86563381,0.0003569,3]
[357511324,1744097432443,-1308.45,0.000357,7]
[357511325,1744097432453,-2583.13560729,0.000357,30]
[357511363,1744097438158,-185.44022998,0.00024999,2]
[357511365,1744097438171,-540.864045,0.0003519,30]
[357511367,1744097438180,-375.96698777,0.00035616,7]
[357511370,1744097438203,-124.03301223,0.00035616,7]
[357511372,1744097438214,-500.0,0.00035616,7]
[357511374,1744097438224,-500.0,0.00035616,7]
[357511377,1744097438234,-500.0,0.00035616,7]
[357511379,1744097438244,-500.0,0.00035616,7]
[357511381,1744097438255,-549.60745825,0.00035616,7]
[357511383,1744097438266,-26055.224808,0.000357,30]
[357511385,1744097438278,-6608.7482034,0.000357,30]
[357511403,1744097439580,-840.99138131,0.000357,30]
[357511404,1744097439590,-419.46366559,0.000357,30]
[357511405,1744097439600,-837.41003169,0.000357,30]
[357511406,1744097439610,-453.79571,0.0003589,2]
[357511407,1744097439621,-151.0,0.00035968,2]
[357511408,1744097439630,-151.0,0.00035968,2]
[357511409,1744097439640,-200.0,0.00035968,2]
[357511410,1744097439650,-500.0,0.00035973,5]
[357511411,1744097439659,-500.0,0.00035973,5]
[357511412,1744097439670,-500.0,0.00035973,5]
[357511414,1744097439680,-75821.71741404,0.0003598,3]
[357511415,1744097439691,-4162.29886903,0.0003598,3]
[357511421,1744097440070,-18227.65619858,0.0003598,3]
[357511423,1744097440081,-860.08543018,0.0003598,3]
[357511425,1744097440092,-83059.11493222,0.0003598,3]
[357511428,1744097440103,-11344.44438995,0.0003598,3]
[357511430,1744097440113,-10007.6033338,0.0003598,3]
[357511432,1744097440122,-70835.39770982,0.0003599,2]
[357511434,1744097440131,-500.0,0.00036,13]
[357511436,1744097440141,-156.587,0.00036023,2]
[357511438,1744097440150,-313.17400001,0.00036078,2]
[357511440,1744097440160,-2259.33526328,0.000362,98]
[357511442,1744097440169,-287.82663216,0.00036516,2]
[357511444,1744097440179,-2200.0,0.0003653,7]
[357511446,1744097440189,-771.166,0.0003653,7]
[357511448,1744097440198,-100342.941879,0.00037,6]
[357511450,1744097440208,-207.4,0.00037337,2]
[357511451,1744097440218,-419.46366559,0.0003753,7]
[357511452,1744097440227,-837.41003169,0.0003753,7]
[357511453,1744097440236,-160.0,0.0003753,7]
[357511454,1744097440246,-1500.0,0.00037892,2]
[357511455,1744097440255,-563.99711313,0.00038,60]
[357511456,1744097440310,-274.58248928,0.0003519,30]
[357511458,1744097440578,-243.73651072,0.0003519,30]
[357511459,1744097440588,-4436.00288687,0.00038,60]
[357511460,1744097440597,-243.2,0.000382,7]
[357511461,1744097440606,-279.99,0.0003832,51]
[357511462,1744097440616,-1500.0,0.00038356,5]
[357511463,1744097440625,-2493.86,0.000384,30]
[357511464,1744097440635,-408.13,0.000387,31]
[357511465,1744097440645,-408.13,0.000387,31]
[357511466,1744097440655,-408.13,0.000387,31]
[357511467,1744097440664,-408.13,0.000387,31]
[357511468,1744097440674,-408.13,0.000387,31]
[357511469,1744097440684,-408.13,0.000387,31]
[357511470,1744097440694,-408.13,0.000387,31]
[357511471,1744097440704,-408.13,0.000387,31]
[357511472,1744097440714,-408.13,0.000387,31]
[357511473,1744097440723,-408.13,0.000387,31]
[357511474,1744097440733,-408.13,0.000387,31]
[357511475,1744097440742,-408.13,0.000387,31]
[357511476,1744097440751,-215.0738,0.00038706,2]
[357511477,1744097440761,-203.79145,0.000388,120]
[357511478,1744097440771,-2858.88,0.00039,30]
[357511479,1744097440781,-659.41,0.000395,30]
[357511480,1744097440790,-150.0,0.00039973,5]
[357511481,1744097440800,-96737.6586169,0.0003999,3]
[357511482,1744097440810,-5003.80166689,0.0003999,3]
[357511483,1744097440820,-5000.0,0.0004,15]
[357511484,1744097440830,-2444.57099011,0.0004,2]
[357511500,1744097446235,-2695.42900989,0.0004,2]
[357511501,1744097446246,-2000.0,0.0004,15]
[357511502,1744097446255,-2000.0,0.0004,15]
[357511503,1744097446265,-1304.57099011,0.0004,15]
[357511506,1744098426111,-478.92396621,0.0002149,2]
[357511507,1744098454119,-300.0,0.00021489,2]
[357511508,1744098454146,-20621.20305809,0.0002149,2]